[Event "*** Titled Tuesday 3|2 Blitz"]
[Site "Chess.com"]
[Date "2016.02.02"]
[Round "9"]
[White "KNVB"]
[Black "BahadirOzen"]
[Result "1-0"]
[WhiteElo "2400"]
[BlackElo "2488"]
[TimeControl "180+2"]
[EndTime "13:01:47 PST"]
[Termination "KNVB won by resignation"]

1. d4 {[%clk 0:02:57.5]} 1... d6 {[%clk 0:02:59.5]} 2. e4 {[%clk 0:02:54.1]}
2... Nf6 {[%clk 0:02:59.7]} 3. f3 {[%clk 0:02:54]} 3... e5 {[%clk 0:02:59.4]} 4.
dxe5 {[%clk 0:02:54.6]} 4... dxe5 {[%clk 0:03:00.2]} 5. Qxd8+ {[%clk 0:02:56.5]}
5... Kxd8 {[%clk 0:03:02.1]} 6. Be3 {[%clk 0:02:55.6]} 6... Be6 {[%clk
0:02:59.5]} 7. Nd2 {[%clk 0:02:49.3]} 7... Nbd7 {[%clk 0:02:55.6]} 8. Bc4 {[%clk
0:02:49.2]} 8... Bxc4 {[%clk 0:02:54.8]} 9. Nxc4 {[%clk 0:02:51.1]} 9... c6
{[%clk 0:02:46.6]} 10. O-O-O {[%clk 0:02:44.9]} 10... Kc7 {[%clk 0:02:47.2]} 11.
Ne2 {[%clk 0:02:45.6]} 11... b5 {[%clk 0:02:47.6]} 12. Na5 {[%clk 0:02:41.5]}
12... Bb4 {[%clk 0:02:45.2]} 13. Nb3 {[%clk 0:02:40.5]} 13... a5 {[%clk
0:02:45]} 14. Kb1 {[%clk 0:02:31.6]} 14... a4 {[%clk 0:02:45.2]} 15. Nbc1 {[%clk
0:02:32.7]} 15... Bc5 {[%clk 0:02:39]} 16. Bg5 {[%clk 0:02:27]} 16... h6 {[%clk
0:02:39.8]} 17. Bh4 {[%clk 0:02:24.5]} 17... Rad8 {[%clk 0:02:22.2]} 18. Nd3
{[%clk 0:02:25.2]} 18... Bd6 {[%clk 0:02:15.3]} 19. Bf2 {[%clk 0:02:15.1]} 19...
Rhe8 {[%clk 0:02:00.8]} 20. g4 {[%clk 0:02:11.7]} 20... c5 {[%clk 0:01:32.6]}
21. c3 {[%clk 0:01:38.9]} 21... Kc6 {[%clk 0:01:05.9]} 22. Be3 {[%clk
0:01:24.9]} 22... c4 {[%clk 0:00:45]} 23. Nb4+ {[%clk 0:01:25.6]} 23... Bxb4
{[%clk 0:00:46]} 24. cxb4 {[%clk 0:01:27.5]} 24... Nf8 {[%clk 0:00:47.8]} 25.
Ng3 {[%clk 0:00:40.2]} 25... Ne6 {[%clk 0:00:44.6]} 26. Nf5 {[%clk 0:00:39.4]}
26... Ng8 {[%clk 0:00:31.7]} 27. h4 {[%clk 0:00:32.1]} 27... Ne7 {[%clk
0:00:21.1]} 28. Rxd8 {[%clk 0:00:20.4]} 28... Nxd8 {[%clk 0:00:23]} 29. Nxg7
{[%clk 0:00:19.8]} 29... Rh8 {[%clk 0:00:19.7]} 30. Rd1 {[%clk 0:00:13]} 30...
Ne6 {[%clk 0:00:17.8]} 31. h5 {[%clk 0:00:11.5]} 31... Nxg7 {[%clk 0:00:18.4]}
32. Kc2 {[%clk 0:00:08.7]} 32... Ne6 {[%clk 0:00:19.5]} 33. a3 {[%clk
0:00:08.2]} 33... Kc7 {[%clk 0:00:19.2]} 34. Kc3 {[%clk 0:00:08.6]} 34... Nc6
{[%clk 0:00:20.6]} 35. Rd5 {[%clk 0:00:09.5]} 35... Ncd4 {[%clk 0:00:20.4]} 36.
Rxe5 {[%clk 0:00:07.1]} 36... Rd8 {[%clk 0:00:12.9]} 37. Bxh6 {[%clk 0:00:05.2]}
37... Ne2+ {[%clk 0:00:14.2]} 38. Kc2 {[%clk 0:00:06.3]} 38... N6d4+ {[%clk
0:00:15.8]} 39. Kd1 {[%clk 0:00:03.3]} 39... Nxf3+ {[%clk 0:00:14.6]} 40. Rd5
{[%clk 0:00:05]} 40... c3 {[%clk 0:00:03.5]} 41. Be3 {[%clk 0:00:03.1]} 41...
cxb2 {[%clk 0:00:03.9]} 42. Kc2 {[%clk 0:00:04.8]} 42... Rxd5 {[%clk 0:00:03.5]}
43. exd5 {[%clk 0:00:06.7]} 43... Ned4+ {[%clk 0:00:05]} 44. Kxb2 {[%clk
0:00:07.6]} 44... Kd6 {[%clk 0:00:02.5]} 45. h6 {[%clk 0:00:09.1]} 45... Ne5
{[%clk 0:00:02.2]} 46. Bxd4 {[%clk 0:00:08.7]} 46... Ng6 {[%clk 0:00:04.1]} 47.
h7 {[%clk 0:00:08.4]} 47... Kxd5 {[%clk 0:00:06]} 48. h8=Q {[%clk 0:00:10.1]}
48... Nxh8 {[%clk 0:00:07.3]} 49. Bxh8 {[%clk 0:00:12]} 49... Ke4 {[%clk
0:00:08.6]} 50. g5 {[%clk 0:00:13.5]} 50... Kf5 {[%clk 0:00:09.7]} 51. Bf6
{[%clk 0:00:13.2]} 51... Ke4 {[%clk 0:00:11.3]} 52. Kc3 {[%clk 0:00:15.1]} 52...
Ke3 {[%clk 0:00:12.2]} 53. Be5 {[%clk 0:00:12.5]} 53... Ke4 {[%clk 0:00:12.9]}
54. Bd4 {[%clk 0:00:13.4]} 54... Kf5 {[%clk 0:00:12.6]} 55. Kd3 {[%clk
0:00:13.9]} 55... Kxg5 {[%clk 0:00:13.8]} 56. Ke4 {[%clk 0:00:15.8]} 56... f5+
{[%clk 0:00:14.6]} 57. Kd5 {[%clk 0:00:17.5]} 57... f4 {[%clk 0:00:15.2]} 58.
Kc5 {[%clk 0:00:19.1]} 1-0

[Event "*** Titled Tuesday 3|2 Blitz"]
[Site "Chess.com"]
[Date "2016.02.02"]
[Round "9"]
[White "Tesla37"]
[Black "FairChess_on_YouTube"]
[Result "1-0"]
[WhiteElo "2586"]
[BlackElo "2704"]
[TimeControl "180+2"]
[EndTime "13:01:52 PST"]
[Termination "Tesla37 won by resignation"]

1. e4 {[%clk 0:03:01.9]} 1... c5 {[%clk 0:03:00.6]} 2. Nf3 {[%clk 0:03:01.7]}
2... e6 {[%clk 0:03:01.8]} 3. d4 {[%clk 0:03:02.4]} 3... cxd4 {[%clk 0:03:03.7]}
4. Nxd4 {[%clk 0:03:04]} 4... a6 {[%clk 0:03:05.3]} 5. Nc3 {[%clk 0:03:05.3]}
5... b5 {[%clk 0:03:04.9]} 6. Bd3 {[%clk 0:03:06.2]} 6... Qb6 {[%clk 0:03:05]}
7. Nf3 {[%clk 0:03:07]} 7... Bb7 {[%clk 0:03:04.9]} 8. O-O {[%clk 0:03:08]} 8...
Nc6 {[%clk 0:03:02.5]} 9. e5 {[%clk 0:03:03.1]} 9... f5 {[%clk 0:03:01.6]} 10.
a4 {[%clk 0:02:57.8]} 10... b4 {[%clk 0:03:00.5]} 11. Ne2 {[%clk 0:02:58.8]}
11... Nge7 {[%clk 0:02:49.3]} 12. Nf4 {[%clk 0:02:40.2]} 12... Ng6 {[%clk
0:02:44.3]} 13. Nxg6 {[%clk 0:02:36.5]} 13... hxg6 {[%clk 0:02:45]} 14. Bf4
{[%clk 0:02:36.5]} 14... Nd4 {[%clk 0:02:33.1]} 15. Nxd4 {[%clk 0:02:21.1]}
15... Qxd4 {[%clk 0:02:33.9]} 16. Qd2 {[%clk 0:02:22.5]} 16... Bc5 {[%clk
0:02:11.3]} 17. Rfd1 {[%clk 0:02:11.8]} 17... g5 {[%clk 0:01:43.1]} 18. Bxg5
{[%clk 0:02:09.2]} 18... Qxe5 {[%clk 0:01:29.9]} 19. Bf4 {[%clk 0:01:52.3]}
19... Qd5 {[%clk 0:01:24.1]} 20. Bf1 {[%clk 0:01:53.5]} 20... Qxd2 {[%clk
0:01:12.4]} 21. Rxd2 {[%clk 0:01:54.4]} 21... Bc6 {[%clk 0:01:12.8]} 22. a5
{[%clk 0:01:54.2]} 22... Rh4 {[%clk 0:00:40.7]} 23. g3 {[%clk 0:01:48.8]} 23...
Rxf4 {[%clk 0:00:40.4]} 24. gxf4 {[%clk 0:01:49.3]} 24... Ke7 {[%clk 0:00:41.9]}
25. Rad1 {[%clk 0:01:42.7]} 25... d6 {[%clk 0:00:38.6]} 26. Re1 {[%clk
0:01:21.4]} 26... Kf6 {[%clk 0:00:35.7]} 27. Bc4 {[%clk 0:01:11.1]} 27... d5
{[%clk 0:00:35.4]} 28. Bf1 {[%clk 0:01:08.9]} 28... Bd6 {[%clk 0:00:33.7]} 29.
Rd4 {[%clk 0:01:02.8]} 29... Bc5 {[%clk 0:00:34.6]} 30. Rd3 {[%clk 0:01:03.9]}
30... Bd6 {[%clk 0:00:26.7]} 31. Rd4 {[%clk 0:00:46.8]} 31... Bc5 {[%clk
0:00:27.2]} 32. Rd3 {[%clk 0:00:33.7]} 32... Rh8 {[%clk 0:00:27.2]} 33. Rg3
{[%clk 0:00:30.7]} 33... Bd7 {[%clk 0:00:19.1]} 34. c4 {[%clk 0:00:24.6]} 34...
bxc3 {[%clk 0:00:18.6]} 35. bxc3 {[%clk 0:00:25.7]} 35... Rh4 {[%clk 0:00:17.6]}
36. Bxa6 {[%clk 0:00:25.6]} 36... Rxf4 {[%clk 0:00:18.4]} 37. Re2 {[%clk
0:00:22.4]} 37... Ra4 {[%clk 0:00:18.6]} 38. c4 {[%clk 0:00:17.7]} 38... d4
{[%clk 0:00:17.1]} 39. Bb5 {[%clk 0:00:18.2]} 39... Ra1+ {[%clk 0:00:17.8]} 40.
Kg2 {[%clk 0:00:18.7]} 40... Bc8 {[%clk 0:00:19.4]} 41. Rb3 {[%clk 0:00:18.2]}
41... Rxa5 {[%clk 0:00:16]} 42. f3 {[%clk 0:00:19.6]} 42... e5 {[%clk
0:00:16.5]} 43. Bc6 {[%clk 0:00:20.1]} 43... g5 {[%clk 0:00:13.3]} 44. Rb5
{[%clk 0:00:21.1]} 44... Rxb5 {[%clk 0:00:13.2]} 45. cxb5 {[%clk 0:00:22.3]}
45... g4 {[%clk 0:00:08.8]} 46. fxg4 {[%clk 0:00:21.6]} 46... d3 {[%clk
0:00:08.8]} 47. Rd2 {[%clk 0:00:21.2]} 47... e4 {[%clk 0:00:10.3]} 48. gxf5
{[%clk 0:00:22.3]} 48... Bxf5 {[%clk 0:00:11.8]} 49. Rb2 {[%clk 0:00:19.9]}
49... e3 {[%clk 0:00:12.1]} 50. Bf3 {[%clk 0:00:19.2]} 50... Bd4 {[%clk
0:00:06.3]} 51. Rb1 {[%clk 0:00:16.7]} 51... Bc3 {[%clk 0:00:03.1]} 52. b6
{[%clk 0:00:16.1]} 52... e2 {[%clk 0:00:04.6]} 53. b7 {[%clk 0:00:16.3]} 53...
d2 {[%clk 0:00:06]} 54. b8=Q {[%clk 0:00:16.2]} 54... Bxb1 {[%clk 0:00:06.6]}
55. Qb6+ {[%clk 0:00:16.3]} 55... Ke5 {[%clk 0:00:07.5]} 56. Qe3+ {[%clk
0:00:16.2]} 56... Kd6 {[%clk 0:00:08.3]} 57. Bxe2 {[%clk 0:00:17.1]} 1-0

[Event "*** Titled Tuesday 3|2 Blitz"]
[Site "Chess.com"]
[Date "2016.02.02"]
[Round "9"]
[White "Boryboy"]
[Black "lionheart95"]
[Result "0-1"]
[WhiteElo "2489"]
[BlackElo "2286"]
[TimeControl "180+2"]
[EndTime "13:02:05 PST"]
[Termination "lionheart95 won by resignation"]

1. d4 {[%clk 0:01:50.3]} 1... Nf6 {[%clk 0:02:58]} 2. Nf3 {[%clk 0:01:50.5]}
2... d5 {[%clk 0:02:57.9]} 3. g3 {[%clk 0:01:49.6]} 3... e6 {[%clk 0:02:56.5]}
4. Bg2 {[%clk 0:01:51.1]} 4... Be7 {[%clk 0:02:57.4]} 5. O-O {[%clk 0:01:52.6]}
5... O-O {[%clk 0:02:58.9]} 6. c4 {[%clk 0:01:52.5]} 6... dxc4 {[%clk
0:02:59.8]} 7. Ne5 {[%clk 0:01:53.5]} 7... Nbd7 {[%clk 0:02:58.3]} 8. Nxc4
{[%clk 0:01:53.8]} 8... c5 {[%clk 0:02:56.7]} 9. Nc3 {[%clk 0:01:52.1]} 9...
cxd4 {[%clk 0:02:55.3]} 10. Qxd4 {[%clk 0:01:54]} 10... Bc5 {[%clk 0:02:55.9]}
11. Qd3 {[%clk 0:01:53.1]} 11... a6 {[%clk 0:02:53.9]} 12. Be3 {[%clk
0:01:47.9]} 12... Bxe3 {[%clk 0:02:51]} 13. Qxe3 {[%clk 0:01:45.3]} 13... Qc7
{[%clk 0:02:51.6]} 14. b3 {[%clk 0:01:18.6]} 14... Rb8 {[%clk 0:02:48.3]} 15.
Rac1 {[%clk 0:01:10.6]} 15... b5 {[%clk 0:02:44.5]} 16. Nd2 {[%clk 0:01:11.1]}
16... Qb6 {[%clk 0:02:44.7]} 17. Qxb6 {[%clk 0:01:10.7]} 17... Nxb6 {[%clk
0:02:46.6]} 18. Nde4 {[%clk 0:01:10.3]} 18... Bb7 {[%clk 0:02:41.6]} 19. Nxf6+
{[%clk 0:01:10.6]} 19... gxf6 {[%clk 0:02:42.5]} 20. Ne4 {[%clk 0:01:10.9]}
20... f5 {[%clk 0:02:35.1]} 21. Nf6+ {[%clk 0:01:00.4]} 21... Kg7 {[%clk
0:02:34.4]} 22. Nh5+ {[%clk 0:01:01.6]} 22... Kg6 {[%clk 0:02:33.5]} 23. Nf4+
{[%clk 0:01:02.7]} 23... Kf6 {[%clk 0:02:34.5]} 24. Rc7 {[%clk 0:01:02.7]} 24...
Bxg2 {[%clk 0:02:35.1]} 25. Kxg2 {[%clk 0:01:04.6]} 25... Rfc8 {[%clk
0:02:34.5]} 26. Rfc1 {[%clk 0:00:58.5]} 26... Rxc7 {[%clk 0:02:20.6]} 27. Rxc7
{[%clk 0:00:59]} 27... Rc8 {[%clk 0:02:21.2]} 28. Rb7 {[%clk 0:01:00]} 28... Na8
{[%clk 0:02:19]} 29. Nd3 {[%clk 0:00:59]} 29... Rc2 {[%clk 0:01:56.2]} 30. f4
{[%clk 0:00:55.4]} 30... Rxe2+ {[%clk 0:01:40.6]} 31. Kf3 {[%clk 0:00:56]} 31...
Rc2 {[%clk 0:01:31.2]} 32. Rd7 {[%clk 0:00:53.6]} 32... Rc7 {[%clk 0:01:29.6]}
33. Rd6 {[%clk 0:00:51.4]} 33... Rc3 {[%clk 0:01:14.9]} 34. Ke2 {[%clk
0:00:46.8]} 34... Nc7 {[%clk 0:01:13]} 35. Ne5 {[%clk 0:00:43.6]} 35... Nd5
{[%clk 0:01:08.7]} 36. Rxa6 {[%clk 0:00:43.1]} 36... Rc2+ {[%clk 0:01:03.1]} 37.
Kf3 {[%clk 0:00:41.3]} 37... Rc3+ {[%clk 0:01:02.5]} 38. Kg2 {[%clk 0:00:42]}
38... Rc2+ {[%clk 0:01:02.9]} 39. Kh3 {[%clk 0:00:42.6]} 39... Rc3 {[%clk
0:01:03.8]} 40. Ra7 {[%clk 0:00:42.2]} 40... Nxf4+ {[%clk 0:01:04.1]} 41. Kh4
{[%clk 0:00:39.7]} 41... Kxe5 {[%clk 0:01:00.2]} 42. gxf4+ {[%clk 0:00:40.9]}
42... Kxf4 {[%clk 0:01:01.9]} 43. Rxf7 {[%clk 0:00:42.6]} 43... Rc2 {[%clk
0:01:03.1]} 44. h3 {[%clk 0:00:41.6]} 44... Rxa2 {[%clk 0:01:03.9]} 45. Rxh7
{[%clk 0:00:41.8]} 45... Rb2 {[%clk 0:01:04.6]} 46. Kh5 {[%clk 0:00:34.5]} 46...
Rxb3 {[%clk 0:01:05.5]} 47. h4 {[%clk 0:00:36.4]} 47... Rg3 {[%clk 0:01:05.4]}
48. Rb7 {[%clk 0:00:36.4]} 48... e5 {[%clk 0:01:04.3]} 49. Rxb5 {[%clk
0:00:37.1]} 49... e4 {[%clk 0:01:05.3]} 50. Rb4 {[%clk 0:00:37.3]} 50... Kf3
{[%clk 0:01:03.3]} 51. Kh6 {[%clk 0:00:37.6]} 51... Rh3 {[%clk 0:00:59.8]} 52.
Kg5 {[%clk 0:00:37.8]} 52... f4 {[%clk 0:00:52.1]} 53. Rb1 {[%clk 0:00:38.2]}
53... Rg3+ {[%clk 0:00:51]} 54. Kf5 {[%clk 0:00:39.2]} 54... e3 {[%clk
0:00:24.4]} 55. h5 {[%clk 0:00:19.2]} 55... Rh3 {[%clk 0:00:23.6]} 56. Kg5
{[%clk 0:00:16.8]} 56... e2 {[%clk 0:00:21.3]} 57. h6 {[%clk 0:00:17.5]} 57...
Kf2 {[%clk 0:00:14.5]} 58. Kxf4 {[%clk 0:00:12.6]} 58... Rxh6 {[%clk 0:00:15]}
0-1

[Event "*** Titled Tuesday 3|2 Blitz"]
[Site "Chess.com"]
[Date "2016.02.02"]
[Round "9"]
[White "MasterLeif"]
[Black "ftorodent"]
[Result "1/2-1/2"]
[WhiteElo "2321"]
[BlackElo "2322"]
[TimeControl "180+2"]
[EndTime "13:02:44 PST"]
[Termination "Game drawn - insufficient material"]

1. e4 {[%clk 0:02:59.5]} 1... e6 {[%clk 0:02:59.9]} 2. d4 {[%clk 0:03:00.5]}
2... d5 {[%clk 0:03:00.8]} 3. Nc3 {[%clk 0:03:02.2]} 3... Bb4 {[%clk 0:03:01.3]}
4. exd5 {[%clk 0:03:02.4]} 4... exd5 {[%clk 0:03:01.7]} 5. Bd3 {[%clk
0:03:04.1]} 5... Ne7 {[%clk 0:03:01.3]} 6. Ne2 {[%clk 0:03:05.6]} 6... Bf5
{[%clk 0:03:01.3]} 7. O-O {[%clk 0:03:05.2]} 7... O-O {[%clk 0:03:01.8]} 8. a3
{[%clk 0:03:04.6]} 8... Bxc3 {[%clk 0:03:02]} 9. Nxc3 {[%clk 0:03:05.1]} 9... c6
{[%clk 0:03:00.5]} 10. Re1 {[%clk 0:03:03.9]} 10... Bxd3 {[%clk 0:02:56.3]} 11.
Qxd3 {[%clk 0:03:04]} 11... Ng6 {[%clk 0:02:58]} 12. Bd2 {[%clk 0:02:55.7]}
12... Nd7 {[%clk 0:02:58.2]} 13. Ne2 {[%clk 0:02:55.3]} 13... Qh4 {[%clk
0:02:41.7]} 14. g3 {[%clk 0:02:54.8]} 14... Qh3 {[%clk 0:02:37.1]} 15. Nf4
{[%clk 0:02:55]} 15... Nxf4 {[%clk 0:02:37.6]} 16. Bxf4 {[%clk 0:02:56.9]} 16...
Rfe8 {[%clk 0:02:38.2]} 17. c3 {[%clk 0:02:51.6]} 17... Nf6 {[%clk 0:02:38.7]}
18. Qf3 {[%clk 0:02:50.3]} 18... Ne4 {[%clk 0:02:20.3]} 19. Qg2 {[%clk
0:02:48.3]} 19... Qf5 {[%clk 0:02:13.8]} 20. f3 {[%clk 0:02:49.2]} 20... Nf6
{[%clk 0:02:09.9]} 21. Re5 {[%clk 0:02:46.8]} 21... Rxe5 {[%clk 0:02:07.2]} 22.
Bxe5 {[%clk 0:02:48.7]} 22... Nd7 {[%clk 0:02:07.3]} 23. Bf4 {[%clk 0:02:46.9]}
23... Re8 {[%clk 0:02:05]} 24. Qf2 {[%clk 0:02:46.9]} 24... Nf8 {[%clk
0:01:47.3]} 25. Re1 {[%clk 0:02:44.2]} 25... Rxe1+ {[%clk 0:01:48]} 26. Qxe1
{[%clk 0:02:46.1]} 26... Ne6 {[%clk 0:01:49.2]} 27. Qe3 {[%clk 0:02:25.8]} 27...
g5 {[%clk 0:01:40.6]} 28. Bb8 {[%clk 0:01:46.6]} 28... Qb1+ {[%clk 0:01:40.2]}
29. Kg2 {[%clk 0:01:45.3]} 29... Qxb2+ {[%clk 0:01:40.7]} 30. Kh3 {[%clk
0:01:44]} 30... Qxa3 {[%clk 0:01:41.5]} 31. f4 {[%clk 0:01:39.5]} 31... gxf4
{[%clk 0:00:52.2]} 32. gxf4 {[%clk 0:01:41.4]} 32... Qe7 {[%clk 0:00:53.3]} 33.
Qg3+ {[%clk 0:01:33.1]} 33... Kf8 {[%clk 0:00:52.6]} 34. Bxa7 {[%clk 0:01:15.2]}
34... Qf6 {[%clk 0:00:53.7]} 35. Bb8 {[%clk 0:01:11.7]} 35... Qf5+ {[%clk
0:00:54.7]} 36. Kg2 {[%clk 0:01:10.4]} 36... Ke7 {[%clk 0:00:55.8]} 37. Qh4+
{[%clk 0:01:09.6]} 37... Kd7 {[%clk 0:00:55.2]} 38. Be5 {[%clk 0:00:56.1]} 38...
Qc2+ {[%clk 0:00:54.4]} 39. Kg1 {[%clk 0:00:54.2]} 39... Qf5 {[%clk 0:00:52.7]}
40. Kg2 {[%clk 0:00:53.5]} 40... b6 {[%clk 0:00:51.5]} 41. Qh6 {[%clk
0:00:52.2]} 41... Qg6+ {[%clk 0:00:51.6]} 42. Qxg6 {[%clk 0:00:53.3]} 42... fxg6
{[%clk 0:00:50.7]} 43. Kf3 {[%clk 0:00:51.1]} 43... c5 {[%clk 0:00:49.1]} 44.
dxc5 {[%clk 0:00:44.8]} 44... Nxc5 {[%clk 0:00:50]} 45. Kg4 {[%clk 0:00:40.2]}
45... Ke6 {[%clk 0:00:50.1]} 46. Kg5 {[%clk 0:00:39.3]} 46... Nd3 {[%clk
0:00:47.3]} 47. Bd4 {[%clk 0:00:39.3]} 47... b5 {[%clk 0:00:48.3]} 48. h4 {[%clk
0:00:31.4]} 48... Ne1 {[%clk 0:00:28.1]} 49. Kh6 {[%clk 0:00:28.3]} 49... Nf3
{[%clk 0:00:23.7]} 50. Kxh7 {[%clk 0:00:26]} 50... Kf5 {[%clk 0:00:24.8]} 51.
Bf2 {[%clk 0:00:22.8]} 51... Nh2 {[%clk 0:00:25]} 52. Kg7 {[%clk 0:00:18.3]}
52... Ng4 {[%clk 0:00:25.6]} 53. Bd4 {[%clk 0:00:16.2]} 53... Nh2 {[%clk
0:00:24.1]} 54. Kf7 {[%clk 0:00:16.6]} 54... Nf3 {[%clk 0:00:25.1]} 55. Bf2
{[%clk 0:00:18.3]} 55... b4 {[%clk 0:00:25.4]} 56. cxb4 {[%clk 0:00:19.3]} 56...
d4 {[%clk 0:00:26.7]} 57. b5 {[%clk 0:00:18.4]} 57... d3 {[%clk 0:00:28]} 58.
Be3 {[%clk 0:00:13.4]} 58... Ke4 {[%clk 0:00:28.6]} 59. b6 {[%clk 0:00:06.7]}
59... Kxe3 {[%clk 0:00:26.6]} 60. b7 {[%clk 0:00:08.2]} 60... d2 {[%clk
0:00:26.2]} 61. b8=Q {[%clk 0:00:09.7]} 61... d1=Q {[%clk 0:00:26.2]} 62. Kxg6
{[%clk 0:00:07.2]} 62... Nxh4+ {[%clk 0:00:27]} 63. Kf6 {[%clk 0:00:06.5]} 63...
Nf3 {[%clk 0:00:25]} 64. Qe8+ {[%clk 0:00:06.1]} 64... Kxf4 {[%clk 0:00:25.5]}
65. Qb8+ {[%clk 0:00:05.3]} 65... Kg4 {[%clk 0:00:25]} 66. Qg8+ {[%clk 0:00:06]}
66... Kh3 {[%clk 0:00:24.1]} 67. Qh7+ {[%clk 0:00:07.1]} 67... Kg2 {[%clk
0:00:25.1]} 68. Qe4 {[%clk 0:00:07.4]} 68... Qd6+ {[%clk 0:00:25]} 69. Kf7
{[%clk 0:00:07.6]} 69... Kg3 {[%clk 0:00:25]} 70. Qg6+ {[%clk 0:00:08]} 70...
Qxg6+ {[%clk 0:00:25.6]} 71. Kxg6 {[%clk 0:00:03.6]} 1/2-1/2